[Event "35th Roquetas Festival 2024"]
[Site "Roquetas de Mar"]
[Date "2024.01.04"]
[Round "4.9"]
[White "Schenderowitsch, Michael"]
[Black "Fiorito, Joaquin"]
[Result "1/2-1/2"]
[ECO "D38"]
[WhiteElo "2281"]
[BlackElo "2401"]
[Annotator "RC"]
[PlyCount "95"]
[EventDate "2024.01.02"]
[EventType "swiss"]
[EventCountry "ESP"]
[SourceTitle "playchess.com"]
[Source "ChessBase"]
[SourceQuality "1"]
[TimeControl "5400+30"]

1. d4 {[%emt 0:00:33]} Nf6 {[%emt 0:00:07]} 2. c4 {[%emt 0:00:07]} e6 {[%emt 0:00:04]} 3. Nf3 {[%emt 0:00:07]} d5 {[%emt 0:00:05]} 4. Nc3 {[%emt 0:00:05]} Bb4 {[%emt 0:00:10]} 5. Qa4+ {[%emt 0:00:07]} Nc6 {[%emt 0:00:05]} 6. e3 {[%emt 0:00:06]} O-O {[%emt 0:00:19]} 7. Bd2 {[%emt 0:00:05]} Re8 {[%emt 0:01:22]} 8. Qc2 {[%emt 0:00:20]} h6 {[%emt 0:02:25]} 9. a3 {[%emt 0:00:29]} Bf8 {[%emt 0:01:21]} 10. Be2 {[%emt 0:07:05]} dxc4 {[%emt 0:12:27]} 11. Bxc4 {[%emt 0:00:25]} Bd6 {[%emt 0:00:33]} 12. O-O {[%emt 0:05:36]} e5 {[%emt 0:01:12]} 13. dxe5 {[%emt 0:00:16]} Nxe5 {[%emt 0:00:05]} 14. Nxe5 {[%emt 0:00:09]} Bxe5 {[%emt 0:00:25]} 15. f4 {[%emt 0:00:31]} Bxc3 {[%emt 0:05:44]} 16. Bxc3 {[%emt 0:00:49]} Be6 {[%emt 0:02:02]} 17. Rad1 {[%emt 0:08:06]} Qe7 {[%emt 0:00:59]} 18. Bxe6 {[%emt 0:07:20]} Qxe6 {[%emt 0:00:05]} 19. Bxf6 {[%emt 0:00:13]} Qxf6 {[%emt 0:00:36]} 20. Qxc7 {[%emt 0:08:19]} Qxb2 {[%emt 0:00:05]} 21. Rd7 {[%emt 0:01:21]} Rxe3 {[%emt 0:12:32]} 22. Rxf7 {[%emt 0:03:22]} b5 {[%emt 0:00:59]} 23. Qd7 {[%emt 0:13:19]} Rae8 {[%emt 0:04:20]} 24. Qd5 {[%emt 0:04:22]} Kh8 {[%emt 0:00:15]} 25. Qc5 {[%emt 0:04:08]} Qxa3 {[%emt 0:01:58]} 26. Qxa7 {[%emt 0:09:45]} Qc3 {[%emt 0:03:55]} 27. Qa1 {[%emt 0:09:49]} b4 {[%emt 0:03:27]} 28. Qxc3 {[%emt 0:07:13]} Rxc3 {[%emt 0:00:35]} 29. f5 {[%emt 0:01:27]} Rb8 {[%emt 0:12:28]} 30. f6 {[%emt 0:01:00]} gxf6 {[%emt 0:01:54]} 31. R7xf6 {[%emt 0:06:38]} Kg7 {[%emt 0:02:40]} 32. Rf7+ {[%emt 0:01:13]} Kg8 {[%emt 0:00:07]} 33. Rd7 {[%emt 0:01:52]} Rc6 {[%emt 0:01:21]} 34. Rff7 {[%emt 0:00:35]} Rg6 {[%emt 0:00:10]} 35. Rb7 {[%emt 0:00:16]} Re8 {[%emt 0:02:34]} 36. Rf4 {[%emt 0:00:44]} Rc6 {[%emt 0:02:15]} 37. Rbxb4 {[%emt 0:00:26]} Re1+ {[%emt 0:01:04]} 38. Kf2 {[%emt 0:00:27]} Rd1 {[%emt 0:00:39]} 39. Rb2 {[%emt 0:00:10]} Rd7 {[%emt 0:01:12]} 40. Re2 {[%emt 0:00:10]} Rf7 {[%emt 0:00:06]} 41. Rxf7 {[%emt 0:00:10]} Kxf7 {[%emt 0:00:01]} 42. g4 {[%emt 0:00:27]} Rc3 {[%emt 0:00:37]} 43. Re3 {[%emt 0:00:04]} Rc5 {[%emt 0:00:32]} 44. Kg3 {[%emt 0:00:05]} h5 {[%emt 0:00:22]} 45. h3 {[%emt 0:00:25]} hxg4 {[%emt 0:00:07]} 46. hxg4 {[%emt 0:00:05]} Kg6 {[%emt 0:00:13]} 47. Rf3 {[%emt 0:00:06]} Kg5 {[%emt 0:00:13]} 48. Rf5+ {[%emt 0:00:08]} 1/2-1/2

[Event "35th Roquetas Festival 2024"]
[Site "Roquetas de Mar"]
[Date "2024.01.04"]
[Round "4.10"]
[White "Tejedor Fuente, Enrique"]
[Black "Fiorito, Fabian"]
[Result "1-0"]
[ECO "C10"]
[WhiteElo "2395"]
[BlackElo "2274"]
[Annotator "RC"]
[PlyCount "65"]
[EventDate "2024.01.02"]
[EventType "swiss"]
[EventCountry "ESP"]
[SourceTitle "playchess.com"]
[Source "ChessBase"]
[SourceQuality "1"]
[TimeControl "5400+30"]

1. e4 {[%emt 0:04:05]} e6 {[%emt 0:03:55]} 2. d4 {[%emt 0:00:29]} d5 {[%emt 0:00:06]} 3. Nd2 {[%emt 0:00:38]} dxe4 {[%emt 0:02:09]} 4. Nxe4 {[%emt 0:00:03]} Nd7 {[%emt 0:00:31]} 5. Bd3 {[%emt 0:01:32]} Ngf6 {[%emt 0:00:52]} 6. Qe2 {[%emt 0:00:44]} c5 {[%emt 0:09:15]} 7. Nxc5 {[%emt 0:05:39]} Nxc5 {[%emt 0:01:12]} 8. dxc5 {[%emt 0:00:18]} Bxc5 {[%emt 0:00:01]} 9. Nf3 {[%emt 0:01:03]} O-O {[%emt 0:00:45]} 10. Bg5 {[%emt 0:02:26]} h6 {[%emt 0:05:25]} 11. Bh4 {[%emt 0:00:30]} Qa5+ {[%emt 0:01:25]} 12. c3 {[%emt 0:01:02]} Nd5 {[%emt 0:01:29]} 13. O-O {[%emt 0:11:58]} Bd6 {[%emt 0:20:02]} 14. Bg3 {[%emt 0:05:55]} Bxg3 {[%emt 0:01:01]} 15. hxg3 {[%emt 0:00:14]} Nf6 {[%emt 0:02:48]} 16. Ne5 {[%emt 0:15:45]} Qc7 {[%emt 0:01:42]} 17. g4 {[%emt 0:03:35]} Nd7 {[%emt 0:17:20]} 18. f4 {[%emt 0:04:20]} Nxe5 {[%emt 0:10:53]} 19. fxe5 {[%emt 0:00:31]} Qe7 {[%emt 0:00:01]} 20. Qe4 {[%emt 0:02:43]} f5 {[%emt 0:01:22]} 21. exf6 {[%emt 0:01:11]} gxf6 {[%emt 0:00:03]} 22. Rae1 {[%emt 0:08:53]} e5 {[%emt 0:02:07]} 23. Rf3 {[%emt 0:08:08]} Be6 {[%emt 0:03:34]} 24. Rh3 {[%emt 0:00:20]} Qg7 {[%emt 0:01:22]} 25. Qe3 {[%emt 0:00:31]} Rfd8 {[%emt 0:11:48]} 26. Bf5 {[%emt 0:03:41]} Bxf5 {[%emt 0:00:55]} 27. gxf5 {[%emt 0:00:02]} Kh7 {[%emt 0:00:01]} 28. Rg3 {[%emt 0:00:37]} Qf8 {[%emt 0:00:01]} 29. Rg6 {[%emt 0:03:42]} Rd7 {[%emt 0:01:46]} 30. Qh3 {[%emt 0:06:32]} Rad8 {[%emt 0:00:44]} 31. Re4 {[%emt 0:00:15]} Rd1+ {[%emt 0:00:33]} 32. Kh2 {[%emt 0:00:03]} R1d3 {[%emt 0:00:44]} 33. Qh5 {[%emt 0:00:33]} 1-0

[Event "35th Roquetas Festival 2024"]
[Site "Roquetas de Mar"]
[Date "2024.01.04"]
[Round "4.11"]
[White "Peng, Li Min"]
[Black "Rodriguez Garcia, Manuel Francisco"]
[Result "1-0"]
[ECO "D53"]
[WhiteElo "2575"]
[BlackElo "2130"]
[Annotator "TA"]
[PlyCount "91"]
[EventDate "2024.01.02"]
[EventType "swiss"]
[EventCountry "ESP"]
[SourceTitle "playchess.com"]
[Source "ChessBase"]
[SourceQuality "1"]
[TimeControl "5400+30"]

{[%evp 20,91,-17,-35,0,18,25,16,47,10,18,-12,-10,-62,-82,-61,-76,-79,-79,-79,-90,-157,0,-89,-87,-95,-87,-177,-189,-291,-276,-312,0,0,32,0,4,0,0,0,0,0,55,54,158,152,158,57,136,129,166,175,168,165,182,156,201,200,207,207,206,207,208,183,189,197,189,182,338,338,358,351,350,335]} 1. d4 {[%emt 0:09:28]} Nf6 {[%emt 0:00:06]} 2. c4 {[%emt 0:00:07]} e6 {[%emt 0:00:52]} 3. Nc3 {[%emt 0:00:40]} d5 {[%emt 0:00:46]} 4. Bg5 {[%emt 0:00:09]} Be7 {[%emt 0:00:07]} 5. e3 {[%emt 0:00:05]} h6 {[%emt 0:00:05]} 6. Bh4 {[%emt 0:00:03]} O-O {[%emt 0:00:31]} 7. Qc2 {[%emt 0:00:12]} c6 {[%emt 0:01:45]} 8. Nf3 {[%emt 0:01:00]} Nbd7 {[%emt 0:00:28]} 9. O-O-O {[%emt 0:01:02]} dxc4 {[%emt 0:04:32]} 10. Bxc4 {[%emt 0:00:09]} b5 {[%emt 0:01:16]} 11. Bd3 {[%emt 0:00:24]} b4 {[%emt 0:03:26] [#] D61: Queen's Gambit Declined: Classical: 7 Qc2.} (11... Bb7 $15) 12. Na4 $146 {[%emt 0:02:42][%cal Oc1b1]} ({Predecessor:} 12. Ne4 Nxe4 13. Bxe7 Qxe7 14. Bxe4 Nf6 15. g4 Nxe4 16. Qxe4 Ba6 17. h4 c5 18. g5 cxd4 19. Rxd4 {1-0 Couspeyre,T (1340)-Molina,V (763) RF-2016-0-00341}) 12... Qa5 {[%emt 0:01:42]} 13. Kb1 {[%emt 0:02:27]} (13. Qxc6 Rb8 14. Qc2 Bb7 $17) 13... c5 {[%emt 0:25:32][%cal Oc5c4] The position is equal.} 14. Bxf6 {[%emt 0:00:05]} (14. Ne5 {keeps more tension.} Nxe5 15. dxe5 c4 16. exf6 cxd3 17. Qc6) 14... gxf6 {[%emt 0:00:05][%cal Bg7f6,Bf6f5][%mdl 32]} 15. Rc1 {[%emt 0:30:15][%cal Ra4c5]} Bb7 $1 {[%emt 0:07:32]} 16. b3 {[%emt 0:00:11]} (16. Nxc5 $11 Bxc5 17. dxc5) 16... Rac8 {[%emt 0:15:07]} 17. Qe2 {[%emt 0:00:56]} f5 {[%emt 0:17:02]} 18. Rhg1 {[%emt 0:00:44]} cxd4 {[%emt 0:02:55]} 19. Rxc8 {[%emt 0:00:03]} Rxc8 {[%emt 0:00:09]} (19... Bxc8 20. exd4 h5 21. h3 $14) 20. g4 {[%emt 0:00:13] [#]} (20. Nxd4 $142 Nf6 21. g3) 20... Kf8 $2 {[%emt 0:06:10]} (20... fxg4 $1 $17 {...dxe3 is the strong threat.} 21. Rxg4+ Kf8 22. exd4 Qc7) 21. Nxd4 {[%emt 0:00:29]} (21. gxf5 $1 $11 {remains equal.} e5 22. exd4 exd4 23. Nxd4) 21... fxg4 $17 {[%emt 0:01:40]} 22. Qxg4 {[%emt 0:00:17][%csl Gg1][%cal Rg4g8]} Qg5 {[%emt 0:00:57] Dodges Qg8+} 23. Qd1 {[%emt 0:00:05]} (23. Qxg5 $17 {might work better.} hxg5 24. Rc1) 23... Qh4 $19 {[%emt 0:02:09][%csl LRf2,LRh2]} 24. Rg4 {[%emt 0:06:47]} (24. f3 {was called for.}) 24... Qxh2 {[%emt 0:00:28]} (24... Qxf2 25. Nxe6+ Ke8 26. Rg8+ Bf8 27. Ng7+ Ke7 28. Nf5+ (28. Bf5 $2 Rd8 $19) 28... Kf6 29. Rg1 $14) 25. Rf4 {[%emt 0:00:01]} Qh1 $2 {[%emt 0:03:58] [#]} (25... Bd6 $19 26. Nf3 (26. Nxe6+ $2 Ke7 $19) 26... Qh5) 26. Nxe6+ {[%emt 0:00:32][%cal Bd4e6,Be6g7,Bg7f5][%mdl 32]} Ke8 {[%emt 0:00:12]} (26... Kg8 $5 {[%cal Rh1d1]} 27. Rg4+ Kh8 28. Qxh1 Bxh1 $11) 27. Ng7+ $40 {[%emt 0:00:53][%mdl 128] White is up to no good.} (27. Qxh1 {simplifies} Bxh1 28. Nd4 h5 29. Nf5) 27... Kf8 {[%emt 0:00:20]} 28. Qxh1 {[%emt 0:00:04]} Bxh1 {[%emt 0:00:04] This pair of bishops is nice.} 29. Nf5 {[%emt 0:00:04]} Ne5 {[%emt 0:02:34]} 30. Bc2 {[%emt 0:00:22]} a5 {[%emt 0:02:03]} (30... h5 $11) 31. Nxh6 $14 {[%emt 0:00:07]} Bc6 {[%emt 0:00:54]} (31... Rd8 $14) 32. Nb6 $16 {[%emt 0:00:45]} Rd8 {[%emt 0:00:17]} 33. Rf5 {[%emt 0:00:28] Wards off Bg5. White is more active.} ({White has to play} 33. Nc4 $16 Nxc4 34. Rxf7+ (34. bxc4 f6 $16) (34. Rxc4 Bd5 $14) 34... Ke8 35. bxc4) 33... f6 {[%emt 0:00:32]} ({Black should try} 33... Rd6 $1 $14 34. Nc8 (34. Rxe5 Rxh6 35. Kc1 Bd8 $11) 34... Rxh6 35. Nxe7 (35. Rxe5 $2 {perishes.} Rh1+ $19) 35... Rh1+ 36. Kb2 a4) 34. f4 {[%emt 0:00:06]} Nd3 {[%emt 0:00:40]} 35. Rxa5 {[%emt 0:00:43]} Ne1 {[%emt 0:00:02]} 36. Nf5 {[%emt 0:00:51]} Nxc2 {[%emt 0:00:02]} 37. Kxc2 {[%emt 0:00:30]} Be4+ {[%emt 0:00:04]} 38. Kc1 {[%emt 0:00:01]} Rd3 {[%emt 0:00:55]} 39. Nc4 {[%emt 0:00:58]} Rc3+ {[%emt 0:00:12]} 40. Kd1 {[%emt 0:00:02]} Rd3+ {[%emt 0:01:40]} 41. Ke1 {[%emt 0:12:51]} Rc3 {[%emt 0:00:15]} 42. Nxe7 {[%emt 0:00:05]} Kxe7 {[%emt 0:00:10]} 43. Ra4 {[%emt 0:00:04]} Rc2 $2 (43... f5 44. Rxb4 Rc1+ 45. Ke2 Rc2+ 46. Nd2 Rxa2) 44. a3 $18 {[%emt 0:01:13]} ({Less strong is} 44. Rxb4 Rxa2 45. Nd2 Bd3 $18) 44... Bd3 {[%emt 0:01:39]} 45. Rxb4 {[%emt 0:00:08]} Re2+ {[%emt 0:00:17]} 46. Kd1 {[%emt 0:00:03] What a bad dream for Black.   Weighted Error Value: White=0.25 (precise) /Black=0.38} 1-0

[Event "35th Roquetas Festival 2024"]
[Site "Roquetas de Mar"]
[Date "2024.01.04"]
[Round "4.12"]
[White "Camacho Collados, Marcos"]
[Black "Romero Calduch, Sergio"]
[Result "0-1"]
[ECO "B13"]
[WhiteElo "2466"]
[BlackElo "2208"]
[Annotator "TA"]
[PlyCount "64"]
[EventDate "2024.01.02"]
[EventType "swiss"]
[EventCountry "ESP"]
[SourceTitle "playchess.com"]
[Source "ChessBase"]
[SourceQuality "1"]
[TimeControl "5400+30"]

{[%evp 11,64,31,38,-26,16,41,30,5,14,0,22,14,34,-6,0,-110,39,-95,-19,-16,8,5,43,50,63,0,8,26,24,0,22,18,25,16,27,22,12,20,22,24,24,-69,-70,-298,-310,-293,-312,-756,-744,-1375,-1375,-1276,-1306,-29993,-29994]} 1. e4 {[%emt 0:00:02]} c6 {[%emt 0:01:56]} 2. d4 {[%emt 0:00:13]} d5 {[%emt 0:00:07]} 3. exd5 {[%emt 0:00:10]} cxd5 {[%emt 0:00:07]} 4. Bd3 {[%emt 0:00:04]} Nc6 {[%emt 0:00:07]} 5. c3 {[%emt 0:00:07]} Qc7 {[%emt 0:00:18]} 6. h3 {[%emt 0:03:27][%cal Bh2h3,Bh3g4,Bg4g5,Bg5g6][%mdl 32]} g6 {[%emt 0:00:11] now supersedes 6...Nf6.} 7. Qc2 {[%emt 0:00:54] [#] B13: Caro-Kann: Exchange Variation and Panov-Botvinnik Attack.} ({Better is} 7. Ne2 $14) 7... Bf5 $1 {[%emt 0:07:51]} 8. Bxf5 {[%emt 0:02:30]} (8. Ne2 Bxd3) 8... gxf5 {[%emt 0:00:08] [#]} 9. Ne2 $146 {[%emt 0:12:53] White has an edge.} (9. Qxf5 $5 Nxd4 10. Qd3 $11 (10. Bf4 Nxf5 11. Bxc7 h5 $15)) ({Predecessor:} 9. Qxf5 Nxd4 10. Qd3 Nc6 11. Qxd5 Nf6 12. Qc4 Rg8 13. Bf4 Qd7 14. Na3 e5 15. Rd1 {1-0 Feygin,M (2538)-Burg,T (2485) BEL-chT 1213 2012 (1.3)}) 9... e6 {[%emt 0:00:52]} 10. g4 {[%emt 0:00:39]} fxg4 {[%emt 0:02:51]} 11. hxg4 {[%emt 0:00:38]} Nf6 {[%emt 0:02:45]} 12. f3 {[%emt 0:09:24]} O-O-O {[%emt 0:23:21]} 13. Bg5 {[%emt 0:05:07] [#]} (13. Bf4 $11 Bd6 14. Bg5) 13... Be7 {[%emt 0:00:52]} (13... Nxd4 $1 $17 14. Qd3 Nxe2 15. Qxe2 Bg7) 14. Nd2 {[%emt 0:02:30] [#]} (14. Bh6 $14 {keeps the upper hand.}) 14... h5 {[%emt 0:03:59]} ({Black should play} 14... Nxd4 $1 $17 15. Qa4 Nc6) 15. Bf4 $11 {[%emt 0:06:08]} Qa5 {[%emt 0:17:16]} (15... Nxd4 $2 16. Qd3 Nxf3+ 17. Nxf3 $18) 16. g5 {[%emt 0:01:37] And now b4 would win.} Ne8 {[%emt 0:00:20]} 17. g6 {[%emt 0:06:07]} f6 {[%emt 0:01:29]} 18. Nb3 {[%emt 0:05:37]} (18. b4 $14 Qb6 19. a4) 18... Qa4 {[%emt 0:04:09]} 19. Qd3 {[%emt 0:12:30]} Ng7 {[%emt 0:01:36]} 20. Bh2 {[%emt 0:03:18]} (20. O-O-O $5 {[%cal Rc1b1]}) 20... e5 {[%emt 0:01:27]} 21. O-O-O $1 {[%emt 0:03:50]} Qxa2 {[%emt 0:01:26]} 22. Kc2 {[%emt 0:01:16] Threatens to win with Ra1.} Qa6 {[%emt 0:09:14]} (22... Ba3 $2 23. Rb1 Bxb2 24. Rxb2 $18) 23. Qxa6 {[%emt 0:00:27]} bxa6 {[%emt 0:00:03]} 24. Ra1 {[%emt 0:00:07]} Rh6 {[%emt 0:00:46][%cal Bh8h6,Bh6g6,Bg6g2][%mdl 32]} (24... Nf5 {seems wilder.} 25. Rxa6 Kb7 26. Rha1 Rhg8) 25. dxe5 {[%emt 0:01:36]} fxe5 {[%emt 0:01:09]} 26. Rxa6 {[%emt 0:00:50]} (26. Na5 $11 Nxa5 27. Rxa5) 26... Rxg6 $15 {[%emt 0:01:30]} 27. Ra4 $2 {[%emt 0:09:21] White does not recover from this.} (27. Kd2 $15) 27... Rg2 $19 {[%emt 0:00:48]} 28. Kd1 {[%emt 0:01:16]} Nf5 {[%emt 0:03:07]} 29. Nbc1 $2 {[%emt 0:00:40]} (29. Bg1) 29... d4 {[%emt 0:01:48] White must now prevent ...d3.} 30. cxd4 {[%emt 0:01:34]} Ncxd4 {[%emt 0:02:47]} 31. Bxe5 {[%emt 0:01:23]} Nxe2+ {[%emt 0:02:49]} 32. Ke1 {[%emt 0:00:04] [#]} Ne3 $1 {[%emt 0:03:08] Weighted Error Value: White=1.01/Black=0.20 (precise)} 0-1

[Event "35th Roquetas Festival 2024"]
[Site "Roquetas de Mar"]
[Date "2024.01.04"]
[Round "4.13"]
[White "Espinosa Aranda, Angel"]
[Black "Valdepenas Octavio, Javier"]
[Result "1-0"]
[ECO "D00"]
[WhiteElo "2431"]
[BlackElo "2228"]
[Annotator "RC"]
[PlyCount "105"]
[EventDate "2024.01.02"]
[EventType "swiss"]
[EventCountry "ESP"]
[SourceTitle "playchess.com"]
[Source "ChessBase"]
[SourceQuality "1"]
[TimeControl "5400+30"]

1. d4 {[%emt 0:00:05]} d5 {[%emt 0:02:52]} 2. Bf4 {[%emt 0:01:16]} Nf6 {[%emt 0:00:21]} 3. e3 {[%emt 0:00:22]} e6 {[%emt 0:00:06]} 4. Nf3 {[%emt 0:00:26]} c5 {[%emt 0:00:29]} 5. Nbd2 {[%emt 0:00:41]} Nc6 {[%emt 0:00:23]} 6. c3 {[%emt 0:00:15]} Be7 {[%emt 0:00:12]} 7. Ne5 {[%emt 0:00:20]} O-O {[%emt 0:01:24]} 8. Bd3 {[%emt 0:00:14]} Nd7 {[%emt 0:02:09]} 9. h4 {[%emt 0:00:05]} cxd4 {[%emt 0:18:12]} 10. exd4 {[%emt 0:01:41]} Ndxe5 {[%emt 0:03:13]} 11. dxe5 {[%emt 0:00:11]} f5 {[%emt 0:01:50]} 12. Nf3 {[%emt 0:06:15]} Bd7 {[%emt 0:02:50]} 13. h5 {[%emt 0:11:27]} Rb8 {[%emt 0:12:21]} 14. Qe2 {[%emt 0:06:02]} Qa5 {[%emt 0:05:43]} 15. O-O {[%emt 0:05:44]} b5 {[%emt 0:21:59]} 16. a3 {[%emt 0:05:37]} h6 {[%emt 0:02:23]} 17. Rac1 {[%emt 0:15:21]} Qb6 {[%emt 0:04:03]} 18. Kh1 {[%emt 0:05:42]} Be8 {[%emt 0:03:38]} 19. Ng1 {[%emt 0:00:15]} Qd8 {[%emt 0:05:27]} 20. Nh3 {[%emt 0:00:29]} Bg5 {[%emt 0:04:46]} 21. g3 {[%emt 0:00:12]} Bxf4 {[%emt 0:02:55]} 22. Nxf4 {[%emt 0:00:06]} Qe7 {[%emt 0:00:43]} 23. b4 {[%emt 0:04:24]} a5 {[%emt 0:02:15]} 24. Qe3 {[%emt 0:01:18]} Bf7 {[%emt 0:00:51]} 25. Be2 {[%emt 0:03:09]} Rfd8 {[%emt 0:00:44]} 26. Rfd1 {[%emt 0:00:12]} Rb7 {[%emt 0:01:08]} 27. Nd3 {[%emt 0:00:49]} d4 {[%emt 0:00:30]} 28. Qf3 {[%emt 0:01:39]} Qe8 {[%emt 0:00:32]} 29. c4 {[%emt 0:00:20]} bxc4 {[%emt 0:00:28]} 30. Rxc4 {[%emt 0:00:05]} Rd5 {[%emt 0:00:21]} 31. Rdc1 {[%emt 0:00:26]} Rb6 {[%emt 0:00:41]} 32. b5 {[%emt 0:00:35]} Ne7 {[%emt 0:00:28]} 33. a4 {[%emt 0:00:07]} Rd8 {[%emt 0:00:29]} 34. Nf4 {[%emt 0:00:38]} Nd5 35. Rxd4 {[%emt 0:02:35]} Nxf4 {[%emt 0:00:43]} 36. Qxf4 {[%emt 0:00:05]} Rbb8 {[%emt 0:00:31]} 37. Rxd8 {[%emt 0:05:23]} Rxd8 {[%emt 0:00:01]} 38. Rd1 {[%emt 0:00:16]} Rc8 {[%emt 0:01:00]} 39. Qh4 {[%emt 0:00:26]} Kh7 {[%emt 0:00:27]} 40. Bf3 {[%emt 0:00:16]} Qf8 {[%emt 0:00:32]} 41. b6 {[%emt 0:01:30]} Qc5 {[%emt 0:00:48]} 42. Qd4 {[%emt 0:00:20]} Qc2 {[%emt 0:00:31]} 43. b7 {[%emt 0:00:20]} Rb8 {[%emt 0:00:21]} 44. Kg2 {[%emt 0:00:47]} Qb3 {[%emt 0:00:38]} 45. Qd7 {[%emt 0:00:24]} Be8 {[%emt 0:00:31]} 46. Qc7 {[%emt 0:00:19]} Bxh5 {[%emt 0:00:19]} 47. Bxh5 {[%emt 0:00:12]} Rxb7 {[%emt 0:00:17]} 48. Qc8 {[%emt 0:00:19]} Rb8 {[%emt 0:00:15]} 49. Qd7 {[%emt 0:00:10]} f4 {[%emt 0:01:05]} 50. gxf4 {[%emt 0:03:03]} Rf8 {[%emt 0:00:18]} 51. Rd3 {[%emt 0:00:18]} Qc4 {[%emt 0:00:33]} 52. Rg3 {[%emt 0:00:16]} Qe4+ {[%emt 0:00:24]} 53. Bf3 {[%emt 0:00:13]} 1-0

[Event "35th Roquetas Festival 2024"]
[Site "Roquetas de Mar"]
[Date "2024.01.04"]
[Round "4.14"]
[White "Marin Ferragut, Pau"]
[Black "Bernal Moro, Luis Javier"]
[Result "0-1"]
[ECO "B47"]
[WhiteElo "2178"]
[BlackElo "2370"]
[Annotator "RC"]
[PlyCount "138"]
[EventDate "2024.01.02"]
[EventType "swiss"]
[EventCountry "ESP"]
[SourceTitle "playchess.com"]
[Source "ChessBase"]
[SourceQuality "1"]
[TimeControl "5400+30"]

1. e4 {[%emt 0:00:04]} c5 {[%emt 0:02:08]} 2. Nf3 {[%emt 0:00:22]} e6 {[%emt 0:00:13]} 3. d4 {[%emt 0:00:40]} cxd4 {[%emt 0:00:07]} 4. Nxd4 {[%emt 0:00:20]} Nc6 {[%emt 0:00:05]} 5. Nc3 {[%emt 0:00:27]} Qc7 {[%emt 0:00:54]} 6. g3 {[%emt 0:00:53]} a6 {[%emt 0:04:08]} 7. Bg2 {[%emt 0:00:12]} d6 {[%emt 0:00:59]} 8. O-O {[%emt 0:00:21]} Bd7 {[%emt 0:00:21]} 9. Re1 {[%emt 0:02:47]} Be7 {[%emt 0:00:59]} 10. Nxc6 {[%emt 0:01:24]} Bxc6 {[%emt 0:01:24]} 11. a4 {[%emt 0:00:18]} Nf6 {[%emt 0:10:24]} 12. a5 {[%emt 0:02:13]} O-O {[%emt 0:08:29]} 13. Be3 {[%emt 0:00:33]} Rae8 {[%emt 0:10:38]} 14. Qe2 {[%emt 0:20:36]} Nd7 {[%emt 0:09:02]} 15. f4 {[%emt 0:05:45]} Kh8 {[%emt 0:21:40]} 16. Qd2 {[%emt 0:14:24]} f5 {[%emt 0:11:28]} 17. exf5 {[%emt 0:08:51]} Rxf5 {[%emt 0:02:18]} 18. Bd4 {[%emt 0:09:13]} Bxg2 {[%emt 0:03:07]} 19. Qxg2 {[%emt 0:00:21]} Bf6 {[%emt 0:01:15]} 20. Bxf6 {[%emt 0:01:33]} Nxf6 {[%emt 0:00:31]} 21. Re2 {[%emt 0:08:48]} e5 {[%emt 0:06:17]} 22. Rae1 {[%emt 0:08:35]} Rf8 {[%emt 0:00:42]} 23. fxe5 {[%emt 0:02:45]} dxe5 {[%emt 0:01:15]} 24. Kh1 {[%emt 0:00:52]} h6 {[%emt 0:02:17]} 25. Nd1 {[%emt 0:04:23]} e4 {[%emt 0:01:29]} 26. Rf2 {[%emt 0:02:36]} Qxa5 {[%emt 0:00:26]} 27. Rxf5 {[%emt 0:00:38]} Qxe1+ {[%emt 0:00:19]} 28. Rf1 {[%emt 0:00:01]} Qb4 {[%emt 0:00:10]} 29. Nc3 {[%emt 0:00:10]} Re8 {[%emt 0:00:31]} 30. h3 {[%emt 0:01:07]} Qxb2 {[%emt 0:00:24]} 31. Nd1 Qd4 {[%emt 0:00:36]} 32. Qe2 {[%emt 0:00:39]} Rd8 {[%emt 0:00:25]} 33. Nf2 {[%emt 0:00:56]} Qc3 {[%emt 0:00:12]} 34. Nxe4 {[%emt 0:01:54]} Nxe4 {[%emt 0:00:07]} 35. Qxe4 {[%emt 0:00:01]} Qxg3 {[%emt 0:00:21]} 36. h4 {[%emt 0:01:49]} Qh3+ {[%emt 0:00:19]} 37. Kg1 {[%emt 0:00:08]} Qg3+ {[%emt 0:00:09]} 38. Kh1 {[%emt 0:00:02]} Qh3+ {[%emt 0:00:20]} 39. Kg1 {[%emt 0:00:09]} Qd7 {[%emt 0:00:02]} 40. Kg2 {[%emt 0:01:20]} Qc6 {[%emt 0:01:12]} 41. Qxc6 {[%emt 0:00:11]} bxc6 {[%emt 0:00:06]} 42. Ra1 {[%emt 0:00:07]} Rd2+ {[%emt 0:00:21]} 43. Kg3 {[%emt 0:00:01]} Rxc2 {[%emt 0:00:21]} 44. Rxa6 {[%emt 0:00:01]} Rc5 {[%emt 0:02:18]} 45. Kg4 {[%emt 0:00:18]} h5+ {[%emt 0:00:15]} 46. Kf4 {[%emt 0:00:29]} Kh7 {[%emt 0:00:09]} 47. Ra7 {[%emt 0:00:06]} Kg6 {[%emt 0:01:00]} 48. Rc7 {[%emt 0:00:08]} Kf6 {[%emt 0:00:20]} 49. Rc8 {[%emt 0:00:09]} Rc4+ {[%emt 0:00:26]} 50. Kg3 {[%emt 0:00:07]} g5 {[%emt 0:01:05]} 51. hxg5+ {[%emt 0:00:17]} Kxg5 {[%emt 0:00:03]} 52. Rf8 {[%emt 0:00:50]} h4+ {[%emt 0:00:10]} 53. Kh3 {[%emt 0:00:08]} c5 {[%emt 0:00:11]} 54. Rf3 {[%emt 0:00:20]} Rf4 {[%emt 0:00:31]} 55. Ra3 {[%emt 0:00:17]} c4 {[%emt 0:00:19]} 56. Ra5+ {[%emt 0:00:08]} Kf6 {[%emt 0:00:06]} 57. Rc5 {[%emt 0:00:17]} Ke6 {[%emt 0:00:06]} 58. Ra5 {[%emt 0:00:24]} Kd6 {[%emt 0:00:07]} 59. Ra8 {[%emt 0:00:11]} Kc5 {[%emt 0:00:05]} 60. Rc8+ {[%emt 0:00:16]} Kb4 {[%emt 0:00:06]} 61. Rb8+ Ka3 {[%emt 0:00:00]} 62. Ra8+ {[%emt 0:00:03]} Kb2 {[%emt 0:00:00]} 63. Rb8+ Kc2 {[%emt 0:00:22]} 64. Rc8 {[%emt 0:01:00]} c3 {[%emt 0:00:08]} 65. Rd8 {[%emt 0:00:02]} Kb3 {[%emt 0:00:19]} 66. Rd3 {[%emt 0:00:07]} Kb2 {[%emt 0:00:16]} 67. Rd8 {[%emt 0:00:31]} c2 {[%emt 0:00:07]} 68. Rb8+ {[%emt 0:00:08]} Kc3 {[%emt 0:00:05]} 69. Rc8+ {[%emt 0:00:28]} Rc4 {[%emt 0:00:05]} 0-1